{"text_format":"5","workbook":"xlsx","n_sheets":1,"sheets":["1. Budget"],"props":{"creator":"user","last_modified_by":"Sara Belahcene"},"defined_names":["total_cost","total_cost_y1"],"not_rendered":{"images":3,"external_links":1,"defined_names":4},"read":"whole","date_system":"1900"}

{"sheet":"1. Budget","index":0,"n_rows":60,"n_cols":5,"rows_kept":60,"merged":[[0,0,1,4],[2,1,2,4],[3,1,3,4],[4,0,4,4],[5,0,5,4],[6,0,7,0],[6,1,7,1],[6,2,7,2],[6,3,7,3],[6,4,7,4],[58,0,58,4]],"headers":{"footer":["PCPA ALGERIE Joussour/FAP/2010-2012"]}}
["برنامج ممول من طرف الاتحاد الأوروبي"]
[]
["اسم المنظمة أو الحرفي.ة أو الفلاح.ة"]
["عنوان المشروع"]
[]
["الميزانية المتوقعة للمشروع "]
["النفقات","الوحدة","عدد الوحدات","تكلفة الوحدة (بالدينار)","التكلفة الإجمالية (بالدينار)"]
[]
["(يشمل القسمين 1 و 2 شراء أو تأجير السلع والخدمات المتعلقة بموضوع المشروع)"]
["1. معدات ولوازم الإنتاج"]
["1.1 معدات الإنتاج","الوحدة",null,null,{"$f":"C11*D11","v":{"v":0,"d":"0.00"}}]
["2.1 اللوازم والمواد الاستهلاكية للإنتاج","الوحدة",null,null,{"$f":"C12*D12","v":{"v":0,"d":"0.00"}}]
["المجموع الفرعي - معدات ولوازم الإنتاج",{"$nulls":3},{"$f":"SUM(E11:E12)","v":{"v":0,"d":"0.00"}}]
["2. المعدات والمواد واللوازم المكتبية"]
["1.2 الأثاث","الوحدة",null,null,{"$f":"C15*D15","v":{"v":0,"d":"0.00"}}]
["2.2 أجهزة الاعلام الألي","الوحدة",null,null,{"$f":"C16*D16","v":{"v":0,"d":"0.00"}}]
["3.2 اللوازم والمعدات التعليمية","الوحدة",null,null,{"$f":"C17*D17","v":{"v":0,"d":"0.00"}}]
["4.2 المواد الاستهلاكية المكتبية",{"$nulls":3},{"$f":"C18*D18","v":{"v":0,"d":"0.00"}}]
["5.2 احتياجات أخرى (حددها)","الوحدة",null,null,{"v":0,"d":"0.00"}]
["المجموع الفرعي - المعدات واللوازم",{"$nulls":3},{"$f":"SUM(E15:E19)","v":{"v":0,"d":"0.00"}}]
["3. شراء المواد الخام والخدمات"]
["1.3  شراء المواد الخام","الوحدة",null,null,{"$f":"C22*D22","v":{"v":0,"d":"0.00"}}]
["3.3 مشتريات الخدمات للمشروع","الوحدة",null,null,{"$f":"C23*D23","v":{"v":0,"d":"0.00"}}]
["3.2 شراء مواد التغليف والمواد الاستهلاكية الأخرى","الوحدة",null,null,{"v":0,"d":"0.00"}]
["المجموع الفرعي - مشتريات المواد الخام والخدمات",{"$nulls":3},{"$f":"SUM(E22:E24)","v":{"v":0,"d":"0.00"}}]
["4. الموارد البشرية (الرواتب والأجور الأخرى)"]
["1.4 موظفو الإنتاج في المشروع (العامل، الحرفي، متخصص إعلام ألي، إلخ.)","شهريا",null,null,{"$f":"C27*D27","v":{"v":0,"d":"0.00"}}]
["2.4 موظفو الإدارة / الدعم\n(على سبيل المثال: مساعد، محاسب، إلخ.)","شهريا",null,null,{"$f":"C28*D28","v":{"v":0,"d":"0.00"}}]
["3.4 مدير المشروع","شهريا",null,null,{"$f":"C29*D29","v":{"v":0,"d":"0.00"}}]
["المجموع الفرعي - الموارد البشرية",{"$nulls":3},{"$f":"SUM(E27:E29)","v":{"v":0,"d":"0.00"}}]
["5. السفر *"]
["1.5 الرحلات المحلية","في الرحلة",null,null,{"$f":"C32*D32","v":{"v":0,"d":"0.00"}}]
["5.2 البدلات اليومية **",{"$nulls":3},{"$f":"C33*D33","v":{"v":0,"d":"0.00"}}]
["   1.2.5 في الموقع (الموظفون المعينون بالنشاط)","البدل اليومي per diem",null,null,{"$f":"C34*D34","v":{"v":0,"d":"0.00"}}]
["   2.2.5 المشاركون في الندوات/المؤتمرات","البدل اليومي per diem",null,null,{"$f":"C35*D35","v":{"v":0,"d":"0.00"}}]
["المجموع الفرعي - الرحلات",{"$nulls":3},{"$f":"SUM(E32:E35)","v":{"v":0,"d":"0.00"}}]
["6. الإيجار والمرافق"]
["6.1 الإيجار (الإنتاج، المكتب، إلخ.)","شهريا",null,null,{"$f":"C38*D38","v":{"v":0,"d":"0.00"}}]
["6.2 الخدمات الأساسية (الكهرباء والغاز والماء...)","شهريا",null,null,{"$f":"C39*D39","v":{"v":0,"d":"0.00"}}]
["المجموع الفرعي - الإيجار والمرافق",{"$nulls":3},{"$f":"SUM(E38:E39)","v":{"v":0,"d":"0.00"}}]
["7. التكاليف الأخرى، الخدمات"]
["1.7 الدراسات، والاستطلاعات، إلخ","الوحدة",null,null,{"$f":"C42*D42","v":{"v":0,"d":"0.00"}}]
["2.7 المستندات\n(مثلا: للدورات التكوينية، وورش العمل، والأدلة وما إلى ذلك)","الوحدة",null,null,{"$f":"C43*D43","v":{"v":0,"d":"0.00"}}]
["3.7 الخدمات المالية (تكاليف التحويلات المالية، إلخ.)","الوحدة",null,null,{"$f":"C44*D44","v":{"v":0,"d":"0.00"}}]
["4.7 إجراءات الاتصالات\n(مثلا: مسندات الاتصال، تكاليف الاشهار، إلخ.)","الوحدة",null,null,{"$f":"C45*D45","v":{"v":0,"d":"0.00"}}]
["5.7 استئجار المركبات","لليوم",null,null,{"v":0,"d":"0.00"}]
["المجموع الفرعي للتكاليف الأخرى، الخدمات",{"$nulls":3},{"$f":"SUM(E42:E46)","v":{"v":0,"d":"0.00"}}]
["8. تكاليف المؤتمرات/الندوات/ورش العمل",{"$nulls":3},{"$f":"C48*D48","v":{"v":0,"d":"0.00"}}]
["1.8 تكاليف استئجار القاعة","لليوم",null,null,{"v":0,"d":"0.00"}]
["2.8 الأطعمة","لكل وجبة",null,null,{"v":0,"d":"0.00"}]
["3.8 الإقامة","لليوم",null,null,{"v":0,"d":"0.00"}]
["4.8 الاستشاريون/ المكونون","لليوم",null,null,{"v":0,"d":"0.00"}]
["5.8 عناصر أخرى (حددها)",{"$nulls":3},{"v":0,"d":"0.00"}]
["المجموع الفرعي - تكاليف المؤتمرات/الندوات/ورش العمل",{"$nulls":3},{"$f":"SUM(E48:E53)","v":{"v":0,"d":"0.00"}}]
["أ. المجموع الفرعي للتكاليف المباشرة المؤهلة للنشاط",{"$nulls":3},{"$f":"E54+E47+E40+E36+E30+E25+E20+E13","v":{"v":0,"d":"0.00"}}]
["ب. مبلغ مخصص للطوارئ (3٪ من المجموع الفرعي للتكاليف المباشرة المؤهلة للنشاط)",{"$nulls":3},{"$f":"E55*0.03","v":{"v":0,"d":"0.00"}}]
[" إجمالي التكاليف المؤهلة (أ+ب)",{"$nulls":3},{"$f":"E55+E56","v":{"v":0,"d":"0.00"}}]
[]
["*يمكن إضافة/ حذف الأسطر حسب النفقات اللازمة لمشروعكم\n\n\n\n\n\n"]
["** يغطي البدل اليومي per diem (نفقات المهمة في اليوم) الإقامة والوجبات والنفقات الشخصية."]